[Event "RUS-ch Rapid Women 2021"]
[White "Nasybullina,Alfia"]
[Black "Kovanova,Baira"]
[Site "Sochi"]
[Round "8.1"]
[Annotator "NA"]
[Result "1-0"]
[Date "2021.10.13"]
[WhiteElo "2101"]
[BlackElo "2331"]
[PlyCount "81"]
[TimeControl "5400+30"]

1. d4 {[%emt 1:15:42]} Nf6 {[%emt 1:15:40]} 2. g3 {[%emt 0:0:22]} c5 {[%emt 0:0:0]} 3. dxc5 {[%emt 0:0:59]} e6 {[%emt 0:0:33]} 4. Bg2 {[%emt 0:0:42]} Bxc5 {[%emt 0:0:30]} 5. c4 {[%emt 0:0:55]} Qb6 {[%emt 0:2:18]} 6. Nh3 {[%emt 0:0:54]
} d5 {[%emt 0:2:3]} 7. cxd5 {[%emt 0:1:4]} Nxd5 {[%emt 0:0:0]} 8. 0-0 {[%emt 0:0:41]} 0-0 {[%emt 0:0:24]} 9. e4 {[%emt 0:0:27]} Nb4 {[%emt 0:0:56]
} 10. Nc3 {[%emt 0:1:2]} Bd4 {[%emt 0:3:53]} 11. Na4 {[%emt 0:0:0]} Qd8 {[%emt 0:0:22]} 12. Bg5 {[%emt 0:1:53]} f6 {[%emt 0:0:33]} 13. Bd2 {[%emt 0:0:48]} N4c6 {[%emt 0:1:21]} 14. Nf4 {[%emt 0:1:3]} Qe7 {[%emt 0:1:31]
} 15. Qb3 {[%emt 0:1:33]} Na6 {[%emt 0:0:48]} 16. Rad1 {[%emt 0:0:49]
} Rb8 {[%emt 0:0:45]} 17. Be3 {[%emt 0:1:7]} Bxe3 {[%emt 0:0:0]} 18. Qxe3 {[%emt 0:0:28]} b5 {[%emt 0:1:0]} 19. Nc3 {[%emt 0:0:43]} Ne5 {[%emt 0:0:21]} 20. Qe2 {[%emt 0:1:7]} Bd7 {[%emt 0:0:46]} 21. b3 {[%emt 0:0:0]} Nc5 {[%emt 0:0:27]} 22. b4 {[%emt 0:0:55]} Na4 {[%emt 0:1:14]} 23. Nxa4 {[%emt 0:1:57]} bxa4 {[%emt 0:0:22]} 24. Qe3 {[%emt 0:0:29]} Qxb4 {[%emt 0:1:15]
} 25. Qxa7 {[%emt 0:0:29]} Rb7 {[%emt 0:0:34]} 26. Qe3 {[%emt 0:1:4]
} Qb2 {[%emt 0:0:56]} 27. Bh3 {[%emt 0:0:41]} Qxa2 {[%emt 0:0:0]} 28. Rxd7 {[%emt 0:0:24]} Rxd7 {[%emt 0:1:0]} 29. Bxe6+ {[%emt 0:0:23]} Qxe6 {[%emt 0:0:24]} 30. Nxe6 {[%emt 0:0:22]} Ra8 {[%emt 0:0:30]} 31. Ra1 {[%emt 0:0:48]
} Rda7 {[%emt 0:0:31]} 32. Qb6 {[%emt 0:0:49]} Ra6 {[%emt 0:0:0]} 33. Qb7 {[%emt 0:0:29]} R8a7 {[%emt 0:0:27]} 34. Qc8+ {[%emt 0:0:40]} Kf7 {[%emt 0:0:21]} 35. Nc5 {[%emt 0:0:29]} Rc6 {[%emt 0:0:30]} 36. Qb8 {[%emt 0:0:32]
} Ra5 {[%emt 0:0:37]} 37. Qb7+ {[%emt 0:0:49]} Kg6 {[%emt 0:0:0]} 38. Nd3 {[%emt 0:0:25]} Rca6 {[%emt 0:0:39]} 39. Nxe5+ {[%emt 0:0:29]} fxe5 {[%emt 0:0:22]} 40. Ra3 {[%emt 0:0:28]} Ra7 {[%emt 0:0:26]} 41. Qc6+ {[%emt 0:0:23]
} 1-0

[Event "RUS-ch Rapid Women 2021"]
[White "Solozhenkina,Elizaveta"]
[Black "Lysenko,Margarita"]
[Site "Sochi"]
[Round "8.2"]
[Annotator "NA"]
[Result "0-1"]
[Date "2021.10.13"]
[WhiteElo "2325"]
[BlackElo "2252"]
[PlyCount "64"]
[TimeControl "5400+30"]

1. e4 {[%emt 1:15:42]} c5 {[%emt 1:15:45]} 2. Nf3 {[%emt 0:0:22]} d6 {[%emt 0:0:0]} 3. d4 {[%emt 0:0:21]} cxd4 {[%emt 0:0:22]} 4. Nxd4 {[%emt 0:0:22]} Nf6 $14 {[%emt 0:0:20]} 5. f3 {[%emt 0:0:21]} e5 {[%emt 0:0:34]} 6. Nb3 {[%emt 0:0:21]
} d5 {[%emt 0:0:22]} 7. Bg5 {[%emt 0:0:40]} d4 {[%emt 0:0:23]} 8. c3 {[%emt 0:0:53]} Nc6 {[%emt 0:0:22]} 9. Bb5 {[%emt 0:0:32]} h6 {[%emt 0:1:6]
} 10. Bxf6 {[%emt 0:3:9]} Qxf6 {[%emt 0:0:22]} 11. cxd4 {[%emt 0:0:22]
} Bb4+ {[%emt 0:0:41]} 12. Nc3 {[%emt 0:0:50]} 0-0 {[%emt 0:0:0]} 13. Bxc6 {[%emt 0:4:23]} bxc6 {[%emt 0:2:15]} 14. dxe5 {[%emt 0:0:34]} Qh4+ {[%emt 0:5:23]} 15. g3 {[%emt 0:0:21]} Qh3 {[%emt 0:0:26]} 16. Qc2 {[%emt 0:1:50]
} Rd8 {[%emt 0:1:16]} 17. Nd2 {[%emt 0:4:25]} Ba6 {[%emt 0:0:0]} 18. 0-0-0 {[%emt 0:1:2]} Bd3 {[%emt 0:0:38]} 19. Qb3 {[%emt 0:0:25]} Rab8 {[%emt 0:0:38]} 20. e6 {[%emt 0:1:55]} Bc5 {[%emt 0:1:46]} 21. exf7+ {[%emt 0:0:22]
} Kh8 {[%emt 0:1:43]} 22. Qa4 {[%emt 0:0:22]} Qe6 {[%emt 0:0:0]} 23. Rhe1 {[%emt 0:1:2]} Qxf7 {[%emt 0:0:56]} 24. e5 {[%emt 0:0:40]} Qb7 {[%emt 0:1:28]} 25. Qb3 {[%emt 0:1:8]} Qa6 {[%emt 0:0:38]} 26. Qe6 {[%emt 0:0:35]
} Bb4 {[%emt 0:0:34]} 27. Ndb1 {[%emt 0:0:41]} Bxb1 {[%emt 0:0:0]} 28. Nxb1 {[%emt 0:0:21]} Bxe1 {[%emt 0:0:22]} 29. Rxe1 {[%emt 0:0:0]} Qb6 {[%emt 0:0:27]} 30. Qb3 {[%emt 0:0:36]} Qf2 {[%emt 0:0:25]} 31. Qc3 {[%emt 0:0:29]} Rd5 {[%emt 0:0:25]} 32. Re4 {[%emt 0:0:35]} Rc5 {[%emt 0:0:0]} 0-1

[Event "RUS-ch Rapid Women 2021"]
[White "Balaian,Alina"]
[Black "Chernyak,Viktoria"]
[Site "Sochi"]
[Round "8.3"]
[Annotator "NA"]
[Result "1-0"]
[Date "2021.10.13"]
[WhiteElo "2242"]
[BlackElo "2285"]
[PlyCount "81"]
[TimeControl "5400+30"]

1. e4 {[%emt 1:15:41]} c6 {[%emt 1:15:41]} 2. d4 {[%emt 0:0:21]} d5 {[%emt 0:0:0]} 3. f3 {[%emt 0:0:20]} e6 {[%emt 0:0:32]} 4. Nc3 {[%emt 0:0:24]} b6 {[%emt 0:0:27]
} 5. Bf4 {[%emt 0:1:23]} Ne7 {[%emt 0:0:50]} 6. Nh3 {[%emt 0:0:0]} Ba6 {[%emt 0:1:7]} 7. Qd2 {[%emt 0:2:21]} Bxf1 {[%emt 0:0:53]} 8. Rxf1 {[%emt 0:0:21]} Ng6 {[%emt 0:1:24]} 9. Bg3 {[%emt 0:0:35]} Be7 {[%emt 0:1:0]
} 10. 0-0-0 {[%emt 0:0:37]} a5 {[%emt 0:0:55]} 11. f4 {[%emt 0:0:0]} dxe4 {[%emt 0:2:15]} 12. Nxe4 {[%emt 0:0:32]} 0-0 {[%emt 0:0:29]} 13. f5 {[%emt 0:0:54]} exf5 {[%emt 0:0:55]} 14. Rxf5 {[%emt 0:0:21]} Nd7 {[%emt 0:0:27]
} 15. d5 {[%emt 0:1:11]} Nf6 {[%emt 0:6:9]} 16. Nxf6+ {[%emt 0:0:47]
} Bxf6 {[%emt 0:0:22]} 17. dxc6 {[%emt 0:0:57]} Qxd2+ {[%emt 0:0:0]} 18. Rxd2 {[%emt 0:0:23]} Ne7 {[%emt 0:0:21]} 19. Rb5 {[%emt 0:0:57]} Nxc6 {[%emt 0:0:29]} 20. Rxb6 {[%emt 0:0:26]} Rac8 {[%emt 0:0:36]} 21. Kb1 {[%emt 0:1:50]
} Rfe8 {[%emt 0:0:28]} 22. a3 {[%emt 0:0:34]} h5 {[%emt 0:0:0]} 23. Nf4 {[%emt 0:3:9]} h4 {[%emt 0:0:49]} 24. Bf2 {[%emt 0:0:22]} Bg5 {[%emt 0:1:13]} 25. g3 {[%emt 0:0:22]} Ne5 {[%emt 0:1:18]} 26. Re2 {[%emt 0:0:0]} Ng4 {[%emt 0:2:30]} 27. Rxe8+ {[%emt 0:1:8]} Rxe8 {[%emt 0:0:21]} 28. Nh3 {[%emt 0:0:21]} Bh6 {[%emt 0:0:44]} 29. Bd4 {[%emt 0:1:23]} Re1+ {[%emt 0:0:25]
} 30. Ka2 {[%emt 0:0:21]} Re2 {[%emt 0:0:27]} 31. gxh4 {[%emt 0:0:34]
} Rxc2 {[%emt 0:0:31]} 32. Ng5 {[%emt 0:0:34]} Kf8 {[%emt 0:0:0]} 33. Rb8+ {[%emt 0:0:31]} Ke7 {[%emt 0:0:21]} 34. Rb7+ {[%emt 0:0:22]} Kd6 {[%emt 0:0:24]} 35. Nxf7+ {[%emt 0:0:26]} Kd5 {[%emt 0:0:24]} 36. Bc3 {[%emt 0:1:3]
} Bf4 {[%emt 0:0:46]} 37. h3 {[%emt 0:0:30]} Nf2 {[%emt 0:0:0]} 38. Bxg7 {[%emt 0:0:30]} Nd3 {[%emt 0:0:34]} 39. Rb5+ {[%emt 0:0:33]} Ke6 {[%emt 0:0:22]} 40. Ng5+ {[%emt 0:0:26]} Kd7 {[%emt 0:0:36]} 41. Rd5+ {[%emt 0:0:22]
} 1-0

[Event "RUS-ch Rapid Women 2021"]
[White "Kovalevskaya,Ekaterina"]
[Black "Afonasieva,Anna"]
[Site "Sochi"]
[Round "8.4"]
[Annotator "NA RC"]
[Result "1/2-1/2"]
[Date "2021.10.13"]
[WhiteElo "2364"]
[BlackElo "2227"]
[PlyCount "142"]
[TimeControl "5400+30"]

1. Nf3 {[%emt 1:15:42]} d5 {[%emt 1:15:41]} 2. g3 {[%emt 0:0:23]} Nf6 {[%emt 0:0:22]
} 3. Bg2 {[%emt 0:0:22]} Bf5 {[%emt 0:0:37]} 4. c4 {[%emt 0:0:0]} e6 {[%emt 0:0:41]} 5. 0-0 {[%emt 0:0:43]} c6 {[%emt 0:0:30]} 6. d4 {[%emt 0:1:26]
} h6 {[%emt 0:0:55]} 7. Qb3 {[%emt 0:0:50]} Qb6 {[%emt 0:0:31]
} 8. c5 {[%emt 0:0:41]} Qc7 {[%emt 0:0:24]} 9. Nc3 {[%emt 0:0:37]} Nbd7 {[%emt 0:0:30]
} 10. Bf4 {[%emt 0:0:50]} Qc8 {[%emt 0:0:26]} 11. Nd2 {[%emt 0:0:0]} Be7 {[%emt 0:2:53]} 12. e4 {[%emt 0:1:47]} dxe4 {[%emt 0:0:59]} 13. Nc4 {[%emt 0:2:58]} 0-0 {[%emt 0:5:37]} 14. Bd6 {[%emt 0:0:28]} Bxd6 {[%emt 0:1:3]
} 15. Nxd6 {[%emt 0:0:21]} Qc7 {[%emt 0:0:23]} 16. Qxb7 {[%emt 0:0:34]
} Qxb7 {[%emt 0:0:25]} 17. Nxb7 {[%emt 0:0:21]} Rab8 {[%emt 0:0:0]} 18. Na5 {[%emt 0:0:44]} Rfc8 {[%emt 0:0:30]} 19. Nc4 {[%emt 0:0:36]} e3 {[%emt 0:1:44]} 20. Nd6 {[%emt 0:2:15]} exf2+ {[%emt 0:1:35]} 21. Rxf2 {[%emt 0:0:23]
} Rc7 {[%emt 0:0:32]} 22. Nxf5 {[%emt 0:0:29]} exf5 {[%emt 0:0:0]} 23. b3 {[%emt 0:0:37]} g6 {[%emt 0:0:40]} 24. Re2 {[%emt 0:0:27]} Nf8 {[%emt 0:0:27]} 25. Rd1 {[%emt 0:1:17]} Ne6 {[%emt 0:0:32]} 26. Red2 {[%emt 0:0:49]
} a5 {[%emt 0:1:0]} 27. Na4 {[%emt 0:0:38]} Rd8 {[%emt 0:0:0]} 28. d5 {[%emt 0:1:56]} cxd5 {[%emt 0:1:17]} 29. Bxd5 {[%emt 0:0:21]} Ne4 {[%emt 0:1:17]} 30. Bxe4 {[%emt 0:0:56]} Rxd2 {[%emt 0:0:22]} 31. Rxd2 {[%emt 0:0:21]
} fxe4 {[%emt 0:0:21]} 32. Rd5 {[%emt 0:0:58]} Kf8 {[%emt 0:0:0]} 33. Re5 {[%emt 0:0:49]} Ng5 {[%emt 0:0:56]} 34. Kf2 {[%emt 0:0:39]} f5 {[%emt 0:0:23]} 35. Rd5 {[%emt 0:0:35]} Ke7 {[%emt 0:0:32]} 36. a3 {[%emt 0:0:0]} Rd7 {[%emt 0:0:36]} 37. Rxd7+ {[%emt 0:0:31]} Kxd7 {[%emt 0:0:21]} 38. b4 {[%emt 0:0:24]} axb4 {[%emt 0:0:23]} 39. axb4 {[%emt 0:0:21]} Kc6 {[%emt 0:0:28]
} 40. Nc3 {[%emt 0:0:23]} Nf3 {[%emt 0:0:24]} 41. h4 {[%emt 0:0:0]} Ne5 {[%emt 0:0:28]} 42. Ke3 {[%emt 0:0:24]} Nd3 {[%emt 0:0:21]} 43. h5 {[%emt 0:1:1]} gxh5 {[%emt 0:0:53]} 44. Ne2 {[%emt 0:0:39]} Nxb4 {[%emt 0:0:48]
} 45. Nd4+ {[%emt 0:0:28]} Kxc5 {[%emt 0:0:29]} 46. Nxf5 {[%emt 0:0:21]
} Kd5 {[%emt 0:0:23]} 47. Nxh6 {[%emt 0:0:35]} Nc2+ {[%emt 0:0:0]} 48. Kd2 {[%emt 0:0:23]} Nd4 {[%emt 0:0:26]} 49. Ke3 {[%emt 0:0:23]} Ne6 {[%emt 0:0:37]} 50. Nf7 {[%emt 0:0:51]} Ng7 {[%emt 0:0:24]} 51. Ng5 {[%emt 0:0:26]
} Nf5+ {[%emt 0:0:27]} 52. Kf4 {[%emt 0:0:22]} Nd6 {[%emt 0:0:0]} 53. g4 {[%emt 0:0:26]} h4 {[%emt 0:0:28]} 54. Ke3 {[%emt 0:0:47]} Ke5 {[%emt 0:0:26]
} 55. Nh3 {[%emt 0:0:22]} Nc4+ {[%emt 0:0:36]} 56. Ke2 {[%emt 0:0:24]
} Kd4 {[%emt 0:0:26]} 57. g5 {[%emt 0:0:28]} Nd6 {[%emt 0:0:0]} 58. g6 {[%emt 0:0:47]} Nf5 {[%emt 0:0:23]} 59. Nf4 {[%emt 0:0:22]} Ng7 {[%emt 0:0:36]} 60. Nh3 {[%emt 0:0:24]} Nh5 {[%emt 0:0:34]} 61. Kf2 {[%emt 0:0:40]
} e3+ {[%emt 0:0:44]} 62. Kf3 {[%emt 0:0:28]} Kd3 {[%emt 0:0:0]} 63. Nf4+ {[%emt 0:0:31]} Nxf4 {[%emt 0:0:25]} 64. g7 {[%emt 0:0:20]} e2 {[%emt 0:0:21]} 65. g8=Q {[%emt 0:0:24]} e1=Q {[%emt 0:0:23]} 66. Qb3+ {[%emt 0:0:41]
} Kd4 {[%emt 0:0:36]} 67. Qa4+ {[%emt 0:0:24]} Kd5 {[%emt 0:0:0]} 68. Qxf4 {[%emt 0:0:35]} Qd1+ {[%emt 0:0:40]} 69. Kg2 {[%emt 0:0:31]} Qe1 {[%emt 0:0:28]} 70. Qf5+ {[%emt 0:0:24]} Kd4 {[%emt 0:0:31]} 71. Qf4+ {[%emt 0:0:21]
} Kd5 {[%emt 0:0:25]} 1/2-1/2

[Event "RUS-ch Rapid Women 2021"]
[White "Tomilova,Elena"]
[Black "Vasilevich,Tatjana"]
[Site "Sochi"]
[Round "8.5"]
[Annotator "NA"]
[Result "0-1"]
[Date "2021.10.13"]
[WhiteElo "2256"]
[BlackElo "2326"]
[PlyCount "92"]
[TimeControl "5400+30"]

1. d4 {[%emt 1:15:42]} Nf6 {[%emt 1:15:40]} 2. Nf3 {[%emt 0:0:21]} g6 {[%emt 0:0:22]
} 3. e3 {[%emt 0:0:23]} Bg7 {[%emt 0:0:21]} 4. Be2 {[%emt 0:0:0]} 0-0 {[%emt 0:0:21]} 5. c4 {[%emt 0:0:21]} d6 {[%emt 0:0:23]} 6. Nc3 {[%emt 0:0:22]
} c6 {[%emt 0:0:23]} 7. b3 {[%emt 0:0:23]} Nbd7 {[%emt 0:0:22]
} 8. Bb2 {[%emt 0:0:23]} a6 {[%emt 0:0:27]} 9. Qc2 {[%emt 0:0:23]} b5 {[%emt 0:0:37]
} 10. 0-0 {[%emt 0:0:37]} b4 {[%emt 0:0:48]} 11. Na4 {[%emt 0:0:0]} c5 {[%emt 0:0:48]} 12. Rad1 {[%emt 0:2:5]} Qc7 {[%emt 0:0:26]} 13. d5 {[%emt 0:2:34]} Bb7 {[%emt 0:1:30]} 14. e4 {[%emt 0:0:43]} e5 {[%emt 0:0:0]} 15. Nh4 {[%emt 0:1:3]} Rae8 {[%emt 0:0:48]} 16. Bc1 {[%emt 0:0:50]} Kh8 {[%emt 0:0:40]} 17. g3 {[%emt 0:0:26]} Qd8 {[%emt 0:0:51]} 18. Bg5 {[%emt 0:2:37]
} h6 {[%emt 0:1:15]} 19. Bd2 {[%emt 0:0:25]} Bc8 {[%emt 0:0:0]} 20. Bd3 {[%emt 0:0:49]} Ng8 {[%emt 0:1:49]} 21. Rde1 {[%emt 0:0:48]} Ndf6 {[%emt 0:0:59]} 22. Ng2 {[%emt 0:1:18]} Bh3 {[%emt 0:1:49]} 23. f3 {[%emt 0:0:50]
} Nh7 {[%emt 0:0:59]} 24. Nb2 {[%emt 0:1:44]} a5 {[%emt 0:0:0]} 25. Nd1 {[%emt 0:0:36]} Bd7 {[%emt 0:0:34]} 26. a4 {[%emt 0:0:53]} Qc8 {[%emt 0:0:51]} 27. Nde3 {[%emt 0:0:55]} Ne7 {[%emt 0:0:43]} 28. Nh4 {[%emt 0:0:52]
} Bf6 {[%emt 0:0:45]} 29. Neg2 {[%emt 0:0:49]} Bh3 {[%emt 0:0:0]} 30. Bxh6 {[%emt 0:1:16]} Rg8 {[%emt 0:0:23]} 31. Bc1 {[%emt 0:0:54]} Bxh4 {[%emt 0:0:59]} 32. gxh4 {[%emt 0:0:22]} g5 {[%emt 0:0:35]} 33. h5 {[%emt 0:1:26]
} g4 {[%emt 0:0:37]} 34. f4 {[%emt 0:0:34]} g3 {[%emt 0:0:30]} 35. Re2 {[%emt 0:0:39]} Qg4 {[%emt 0:0:43]} 36. fxe5 {[%emt 0:0:51]} gxh2+ {[%emt 0:0:52]
} 37. Kh1 {[%emt 0:0:27]} dxe5 {[%emt 0:1:44]} 38. Rxf7 {[%emt 0:0:35]
} Ref8 {[%emt 0:0:29]} 39. Rxf8 {[%emt 0:1:26]} Rxf8 {[%emt 0:0:0]} 40. Rf2 {[%emt 0:1:9]} Rg8 {[%emt 0:0:45]} 41. Qe2 {[%emt 0:0:32]} Qg3 {[%emt 0:0:36]} 42. Bb2 {[%emt 0:0:31]} Nf6 {[%emt 0:0:45]} 43. Bxe5 {[%emt 0:0:56]
} Qxe5 {[%emt 0:0:27]} 44. Qf3 {[%emt 0:0:25]} Ng4 {[%emt 0:0:0]} 45. Rd2 {[%emt 0:0:40]} Qd4 {[%emt 0:1:8]} 46. Nf4 {[%emt 0:0:30]} Qg1# {[%emt 0:0:25]} 0-1

[Event "RUS-ch Rapid Women 2021"]
[White "Paramzina,Anastasya"]
[Black "Sukhareva,Evgeniya"]
[Site "Sochi"]
[Round "8.6"]
[Annotator "NA"]
[Result "1/2-1/2"]
[Date "2021.10.13"]
[WhiteElo "2260"]
[BlackElo "2143"]
[PlyCount "91"]
[TimeControl "5400+30"]

1. e4 {[%emt 1:15:40]} c5 {[%emt 1:15:42]} 2. Nf3 {[%emt 0:0:22]} e6 {[%emt 0:0:0]} 3. d4 {[%emt 0:0:24]} cxd4 {[%emt 0:0:22]} 4. Nxd4 {[%emt 0:0:23]} a6 {[%emt 0:0:21]} 5. a3 {[%emt 0:0:25]} Qc7 {[%emt 0:0:27]} 6. Nd2 {[%emt 0:1:40]
} Nf6 {[%emt 0:0:33]} 7. Bd3 {[%emt 0:0:42]} b6 {[%emt 0:1:1]
} 8. N4f3 {[%emt 0:1:10]} d6 {[%emt 0:0:28]} 9. b4 {[%emt 0:0:26]} Bb7 {[%emt 0:0:31]
} 10. Bb2 {[%emt 0:0:35]} Nbd7 {[%emt 0:0:22]} 11. 0-0 {[%emt 0:0:31]
} Be7 {[%emt 0:0:22]} 12. c4 {[%emt 0:0:34]} Rc8 {[%emt 0:0:0]} 13. Re1 {[%emt 0:0:55]} Ne5 {[%emt 0:1:35]} 14. Nxe5 {[%emt 0:1:42]} dxe5 {[%emt 0:0:22]} 15. f4 {[%emt 0:4:20]} Nd7 {[%emt 0:2:6]} 16. Qh5 {[%emt 0:2:13]
} Qd6 {[%emt 0:10:7]} 17. Qh3 {[%emt 0:0:22]} Bf6 {[%emt 0:0:0]} 18. Rad1 {[%emt 0:0:47]} exf4 {[%emt 0:1:43]} 19. Bxf6 {[%emt 0:1:8]} gxf6 {[%emt 0:0:55]} 20. Nf3 {[%emt 0:0:45]} Qc7 {[%emt 0:1:13]} 21. Qh6 {[%emt 0:1:43]
} Ke7 {[%emt 0:0:41]} 22. Rd2 {[%emt 0:2:18]} Rcg8 {[%emt 0:0:0]} 23. Red1 {[%emt 0:0:27]} Rd8 {[%emt 0:0:30]} 24. Qh4 {[%emt 0:0:54]} Qb8 {[%emt 0:0:38]} 25. Kh1 {[%emt 0:0:29]} Ne5 {[%emt 0:0:27]} 26. Nxe5 {[%emt 0:0:40]
} Qxe5 {[%emt 0:0:22]} 27. Qf2 {[%emt 0:0:22]} Qc7 {[%emt 0:0:0]} 28. c5 {[%emt 0:0:32]} b5 {[%emt 0:0:36]} 29. a4 {[%emt 0:0:29]} bxa4 {[%emt 0:0:28]
} 30. b5 {[%emt 0:0:40]} axb5 {[%emt 0:0:28]} 31. Bxb5 {[%emt 0:0:21]
} Rxd2 {[%emt 0:0:29]} 32. Rxd2 {[%emt 0:0:43]} Rd8 {[%emt 0:0:0]} 33. h3 {[%emt 0:0:54]} Bxe4 {[%emt 0:0:30]} 34. Rxd8 {[%emt 0:0:26]} Kxd8 {[%emt 0:0:49]} 35. Qd4+ {[%emt 0:0:24]} Bd5 {[%emt 0:0:21]} 36. Qxf6+ {[%emt 0:0:22]} Qe7 {[%emt 0:0:23]} 37. Qh8+ {[%emt 0:0:30]} Kc7 {[%emt 0:0:0]} 38. Qd4 {[%emt 0:0:30]} Qg5 {[%emt 0:0:27]} 39. Qd2 {[%emt 0:0:43]} Qg3 {[%emt 0:0:23]} 40. Qa5+ {[%emt 0:0:26]} Kb8 {[%emt 0:0:57]} 41. Qd8+ {[%emt 0:0:30]
} Ka7 {[%emt 0:0:27]} 42. Qb6+ {[%emt 0:0:31]} Ka8 {[%emt 0:0:0]} 43. Qd8+ {[%emt 0:1:6]} Ka7 {[%emt 0:0:22]} 44. Qb6+ {[%emt 0:0:30]} Ka8 {[%emt 0:0:22]} 45. Qd8+ {[%emt 0:0:58]} Ka7 {[%emt 0:0:22]} 46. Qb6+ {[%emt 0:0:31]
} 1/2-1/2

[Event "RUS-ch Rapid Women 2021"]
[White "Balaian,Alina"]
[Black "Nasybullina,Alfia"]
[Site "Sochi"]
[Round "9.1"]
[Annotator "NA"]
[Result "1-0"]
[Date "2021.10.13"]
[WhiteElo "2242"]
[BlackElo "2101"]
[PlyCount "119"]
[TimeControl "5400+30"]

1. e4 {[%emt 1:15:40]} c6 {[%emt 1:15:41]} 2. d4 {[%emt 0:0:22]} d5 {[%emt 0:0:0]} 3. f3 {[%emt 0:0:20]} e6 {[%emt 0:0:22]} 4. Nc3 {[%emt 0:0:23]} Nf6 {[%emt 0:0:21]} 5. Be3 {[%emt 0:0:49]} Bb4 {[%emt 0:1:59]} 6. e5 {[%emt 0:0:0]} Nfd7 {[%emt 0:0:22]} 7. f4 {[%emt 0:0:53]} c5 {[%emt 0:0:32]} 8. Nf3 {[%emt 0:0:51]} Nc6 {[%emt 0:0:28]} 9. a3 {[%emt 0:1:27]} Bxc3+ {[%emt 0:0:0]} 10. bxc3 {[%emt 0:0:21]} Qa5 {[%emt 0:0:26]} 11. Qd2 {[%emt 0:0:44]} b6 {[%emt 0:0:56]} 12. g4 {[%emt 0:2:25]} Ba6 {[%emt 0:1:21]} 13. Bg2 {[%emt 0:0:0]} cxd4 {[%emt 0:0:26]} 14. cxd4 {[%emt 0:0:34]} Qxd2+ {[%emt 0:0:25]} 15. Nxd2 {[%emt 0:0:27]} Rc8 {[%emt 0:0:36]} 16. Nb3 {[%emt 0:2:47]} Bc4 {[%emt 0:1:4]
} 17. Kd2 {[%emt 0:0:43]} 0-0 {[%emt 0:0:52]} 18. f5 {[%emt 0:0:0]} Rc7 {[%emt 0:0:47]} 19. Rab1 {[%emt 0:2:19]} Rfc8 {[%emt 0:0:26]} 20. Rb2 {[%emt 0:0:25]} a6 {[%emt 0:3:22]} 21. h4 {[%emt 0:0:28]} Na7 {[%emt 0:0:22]
} 22. a4 {[%emt 0:1:42]} Nc6 {[%emt 0:0:37]} 23. Bf3 {[%emt 0:0:0]} Bxb3 {[%emt 0:0:58]} 24. cxb3 {[%emt 0:0:21]} Nb4 {[%emt 0:0:30]} 25. Rhb1 {[%emt 0:1:47]} Rc3 {[%emt 0:1:17]} 26. Be2 {[%emt 0:0:34]} h6 {[%emt 0:1:6]
} 27. fxe6 {[%emt 0:0:44]} fxe6 {[%emt 0:0:22]} 28. g5 {[%emt 0:0:25]
} hxg5 {[%emt 0:0:40]} 29. Bxg5 {[%emt 0:1:8]} Rg3 {[%emt 0:0:0]} 30. Be7 {[%emt 0:0:39]} Nc6 {[%emt 0:0:29]} 31. Bxa6 {[%emt 0:1:57]} Re8 {[%emt 0:2:16]} 32. Bd6 {[%emt 0:0:31]} Nxd4 {[%emt 0:0:26]} 33. b4 {[%emt 0:0:45]
} Ra8 {[%emt 0:1:13]} 34. Bb5 {[%emt 0:0:33]} Nxb5 {[%emt 0:0:0]} 35. axb5 {[%emt 0:0:20]} Raa3 {[%emt 0:0:24]} 36. Rc2 {[%emt 0:0:42]} Rae3 {[%emt 0:1:24]} 37. Re1 {[%emt 0:0:31]} Rd3+ {[%emt 0:1:1]} 38. Kc1 {[%emt 0:0:22]
} Ra3 {[%emt 0:0:45]} 39. Ree2 {[%emt 0:0:33]} Ra1+ {[%emt 0:0:0]} 40. Kb2 {[%emt 0:0:20]} Rga3 {[%emt 0:0:30]} 41. Rg2 {[%emt 0:0:41]} R1a2+ {[%emt 0:1:12]} 42. Kc1 {[%emt 0:0:25]} Rxc2+ {[%emt 0:0:40]} 43. Rxc2 {[%emt 0:0:21]} Re3 {[%emt 0:0:20]} 44. Rc6 {[%emt 0:0:39]} d4 {[%emt 0:0:0]} 45. Kd2 {[%emt 0:0:29]} Kh7 {[%emt 0:0:49]} 46. Bc7 {[%emt 0:0:22]} Nxe5 {[%emt 0:0:26]} 47. Bxe5 {[%emt 0:0:27]} Rxe5 {[%emt 0:0:21]} 48. Rxb6 {[%emt 0:0:20]} Re3 {[%emt 0:0:29]} 49. Rd6 {[%emt 0:0:50]} e5 {[%emt 0:0:0]} 50. Kc2 {[%emt 0:0:40]} Rc3+ {[%emt 0:0:22]} 51. Kb2 {[%emt 0:0:24]} g6 {[%emt 0:1:12]} 52. Rd5 {[%emt 0:0:35]} Re3 {[%emt 0:0:37]} 53. b6 {[%emt 0:0:0]} Re2+ {[%emt 0:0:31]} 54. Kb3 {[%emt 0:0:24]} Re3+ {[%emt 0:0:32]} 55. Ka4 {[%emt 0:0:32]} Rf3 {[%emt 0:0:28]} 56. Rxe5 {[%emt 0:0:29]} Rf6 {[%emt 0:0:25]
} 57. Ka5 {[%emt 0:0:40]} Rd6 {[%emt 0:0:22]} 58. b7 {[%emt 0:0:0]} Rd8 {[%emt 0:0:22]} 59. Ka6 {[%emt 0:0:38]} d3 {[%emt 0:0:20]} 60. Re1 {[%emt 0:0:34]} 1-0

[Event "RUS-ch Rapid Women 2021"]
[White "Lysenko,Margarita"]
[Black "Vasilevich,Tatjana"]
[Site "Sochi"]
[Round "9.2"]
[Annotator "NA"]
[Result "1-0"]
[Date "2021.10.13"]
[WhiteElo "2252"]
[BlackElo "2326"]
[PlyCount "71"]
[TimeControl "5400+30"]

1. d4 {[%emt 1:15:43]} Nf6 {[%emt 1:15:41]} 2. c4 {[%emt 0:0:21]} g6 {[%emt 0:0:0]} 3. Nf3 {[%emt 0:0:26]} Bg7 {[%emt 0:0:21]} 4. g3 {[%emt 0:0:23]} 0-0 {[%emt 0:0:22]} 5. Bg2 {[%emt 0:0:22]} d6 {[%emt 0:0:22]} 6. 0-0 {[%emt 0:0:0]} Nc6 {[%emt 0:0:21]} 7. Nc3 {[%emt 0:0:24]} a6 {[%emt 0:0:25]} 8. d5 {[%emt 0:1:5]} Na5 {[%emt 0:0:30]} 9. b3 {[%emt 0:0:31]} Nxd5 {[%emt 0:0:0]} 10. Nxd5 {[%emt 0:0:43]} Bxa1 {[%emt 0:1:2]} 11. Bd2 {[%emt 0:0:30]} Nxc4 {[%emt 0:0:35]} 12. Qxa1 {[%emt 0:2:47]} Nxd2 {[%emt 0:0:24]} 13. Nxd2 {[%emt 0:0:26]} c6 {[%emt 0:0:26]} 14. Ne3 {[%emt 0:1:42]} d5 {[%emt 0:0:0]} 15. Rd1 {[%emt 0:1:9]} Qb6 {[%emt 0:1:41]} 16. Qe5 {[%emt 0:2:9]} Be6 {[%emt 0:2:59]} 17. Nf3 {[%emt 0:0:41]} Rad8 {[%emt 0:0:31]} 18. h4 {[%emt 0:3:0]
} Rd6 {[%emt 0:0:50]} 19. h5 {[%emt 0:0:28]} f6 {[%emt 0:0:29]
} 20. Qb2 {[%emt 0:0:39]} Rfd8 {[%emt 0:0:51]} 21. Qc2 {[%emt 0:1:46]} Bf7 {[%emt 0:1:15]
} 22. Nh4 {[%emt 0:0:31]} Kg7 {[%emt 0:1:44]} 23. Qd2 {[%emt 0:0:0]} e6 {[%emt 0:0:43]} 24. Ng4 {[%emt 0:1:41]} g5 {[%emt 0:1:40]} 25. h6+ {[%emt 0:0:23]} Kh8 {[%emt 0:1:30]} 26. Nxf6 {[%emt 0:0:38]} gxh4 {[%emt 0:0:32]
} 27. Qg5 {[%emt 0:0:41]} Bg6 {[%emt 0:4:16]} 28. Nxd5 {[%emt 0:1:27]
} R8d7 {[%emt 0:1:2]} 29. Nxb6 {[%emt 0:0:56]} Rxd1+ {[%emt 0:0:0]} 30. Kh2 {[%emt 0:0:24]} hxg3+ {[%emt 0:0:22]} 31. Qxg3 {[%emt 0:0:0]} Re7 {[%emt 0:0:44]} 32. Qb8+ {[%emt 0:0:47]} Be8 {[%emt 0:0:29]} 33. Nc8 {[%emt 0:0:36]} Red7 {[%emt 0:0:36]} 34. Nd6 {[%emt 0:0:50]} Re7 {[%emt 0:0:30]
} 35. Nxe8 {[%emt 0:0:26]} Kg8 {[%emt 0:0:22]} 36. Nd6+ {[%emt 0:0:28]
} 1-0

[Event "RUS-ch Rapid Women 2021"]
[White "Protopopova,Anastasiya"]
[Black "Kovalevskaya,Ekaterina"]
[Site "Sochi"]
[Round "9.3"]
[Annotator "NA"]
[Result "0-1"]
[Date "2021.10.13"]
[WhiteElo "2257"]
[BlackElo "2364"]
[PlyCount "62"]
[TimeControl "5400+30"]

1. d4 {[%emt 1:15:42]} d5 {[%emt 1:15:42]} 2. c4 {[%emt 0:0:23]} e6 {[%emt 0:0:0]} 3. Nc3 {[%emt 0:0:22]} c5 {[%emt 0:0:23]} 4. cxd5 {[%emt 0:0:30]} exd5 {[%emt 0:0:21]} 5. dxc5 {[%emt 0:0:45]} d4 {[%emt 0:0:50]} 6. Na4 {[%emt 0:0:27]
} b5 {[%emt 0:6:4]} 7. cxb6 {[%emt 0:3:15]} axb6 {[%emt 0:0:0]} 8. b3 {[%emt 0:1:37]} Nf6 {[%emt 0:2:22]} 9. Nf3 {[%emt 0:0:38]} Nc6 {[%emt 0:0:34]
} 10. g3 {[%emt 0:1:8]} Bb4+ {[%emt 0:1:45]} 11. Bd2 {[%emt 0:0:0]} b5 {[%emt 0:2:20]} 12. Bxb4 {[%emt 0:1:2]} Nxb4 {[%emt 0:0:48]} 13. Nc5 {[%emt 0:1:47]} Qa5 {[%emt 0:1:0]} 14. Nd2 {[%emt 0:0:54]} Bf5 {[%emt 0:0:24]
} 15. Rc1 {[%emt 0:4:52]} Nxa2 {[%emt 0:0:26]} 16. Ra1 {[%emt 0:1:8]
} Qc3 {[%emt 0:0:48]} 17. Nd3 {[%emt 0:1:51]} 0-0 {[%emt 0:0:0]} 18. Bg2 {[%emt 0:1:14]} Bxd3 {[%emt 0:0:30]} 19. Bxa8 {[%emt 0:0:45]} Bc2 {[%emt 0:0:37]} 20. Rxa2 {[%emt 0:0:36]} Bxd1 {[%emt 0:0:29]} 21. 0-0 {[%emt 0:1:13]
} Bxe2 {[%emt 0:0:41]} 22. Rfa1 {[%emt 0:0:27]} g6 {[%emt 0:0:0]} 23. Bg2 {[%emt 0:0:27]} d3 {[%emt 0:0:24]} 24. h3 {[%emt 0:0:26]} Kg7 {[%emt 0:0:23]
} 25. g4 {[%emt 0:0:30]} h6 {[%emt 0:0:28]} 26. Rb1 {[%emt 0:0:0]} Rc8 {[%emt 0:0:36]} 27. b4 {[%emt 0:0:28]} Qd4 {[%emt 0:0:32]} 28. Ra6 {[%emt 0:0:52]} Rc2 {[%emt 0:0:30]} 29. Nb3 {[%emt 0:0:21]} Qxb4 {[%emt 0:0:28]
} 30. Raa1 {[%emt 0:0:40]} Qc3 {[%emt 0:0:28]} 31. Na5 {[%emt 0:0:25]
} d2 {[%emt 0:0:26]} 0-1